bitfinex/quotes_ETHUSD_20241023
["timestamp","ask_amount","ask_price","bid_price","bid_amount"]
[1729661964632,3.44323,2613.9,2613.4,3.44369]
[1729661964843,3.4432,2613.9,2613.5,0.7562]
[1729661965501,3.44313,2613.9,2613.5,0.7562]
[1729661965737,6.88636,2613.9,2613.5,0.7562]
[1729661966700,3.44313,2613.9,2613.5,1.42515588]
[1729661966931,3.44293,2614.1,2613.7,1.68775253]
[1729661967099,5.92034253,2614.3,2613.8,0.7562]
[1729661967315,3.44277,2614.2,2613.8,0.7562]
[1729661968641,3.44275,2614.2,2613.8,0.7562]
[1729661968980,3.44287,2614.1,2613.8,0.7562]
[1729661978634,5.13062253,2614.1,2613.8,0.7562]
[1729661981031,3.44287,2614.1,2613.8,0.7562]
[1729661985408,5.13062253,2614.1,2613.8,0.7562]
[1729661986707,1.68775253,2614.0,2613.5,0.7769]
[1729661986906,5.13084253,2614.0,2613.5,4.22053]
[1729661987400,3.44309,2614.0,2613.5,4.22053]
[1729661987701,5.13084253,2614.0,2613.5,4.22053]
[1729661988795,8.57361253,2614.1,2613.6,3.44351]
[1729661989486,5.13062253,2614.1,2613.6,3.44351]
[1729661989687,8.57359253,2614.1,2613.6,3.44351]
[1729661990706,3.44287,2614.1,2613.6,3.44351]
[1729661991906,3.443,2614.0,2613.6,3.44351]
[1729661992377,6.88607,2614.0,2613.5,4.22055]
[1729661992909,3.443,2614.0,2613.5,4.22055]
[1729661993803,3.443,2614.0,2613.5,5.15575025]
[1729661995195,3.443,2614.0,2613.5,1.71210025]
[1729661995507,3.443,2614.0,2613.5,0.7769]
[1729661995508,3.44334,2613.8,2613.5,0.7769]
[1729662000116,0.8096,2613.9,2613.5,0.7769]
[1729662000271,6.88621,2614.0,2613.5,0.7769]
[1729662000972,3.44316,2613.9,2613.5,0.7769]
[1729662005847,3.4432,2613.9,2613.3,0.7867]
[1729662006006,3.4432,2613.9,2613.4,3.44377]
[1729662006613,6.88642,2613.9,2613.4,3.44377]
[1729662006903,3.4432,2613.9,2613.4,3.44377]
[1729662007430,6.88643,2613.9,2613.4,3.44377]
[1729662007625,3.4432,2613.9,2613.4,3.44377]
[1729662007933,6.8864,2613.9,2613.4,3.44377]
[1729662008647,3.4432,2613.9,2613.4,3.44377]
[1729662009430,6.88645,2613.9,2613.4,3.44377]
[1729662010140,3.4432,2613.9,2613.4,3.44377]
[1729662010341,6.88645,2613.9,2613.4,3.44377]
[1729662010517,3.44333,2613.8,2613.3,4.23058]
[1729662012212,3.44333,2613.8,2613.3,4.93700195]
[1729662013019,3.4432,2613.9,2613.4,3.44378]
[1729662013219,3.4432,2613.9,2613.5,3.44361]
[1729662013421,3.4432,2613.9,2613.4,3.44378]
[1729662013634,6.8864,2613.9,2613.4,3.44378]
[1729662014559,3.4432,2613.9,2613.4,3.44378]
[1729662014864,3.4432,2613.9,2613.3,2.37156047]
[1729662014865,3.44326,2613.8,2613.3,0.7867]
[1729662015067,1.68775253,2613.5,2613.3,0.7867]
[1729662015233,5.13147253,2613.5,2613.1,0.813]
[1729662015634,3.44382,2613.4,2613.1,0.813]
[1729662017840,5.13180253,2613.2,2612.8,0.813]
[1729662018036,3.44428,2613.1,2612.8,0.813]
[1729662018839,3.44405,2613.2,2612.8,0.813]
[1729662019046,6.88818,2613.2,2612.8,0.813]
[1729662019550,3.44405,2613.2,2612.8,0.813]
[1729662020422,3.44405,2613.2,2612.8,5.94531253]
[1729662022238,3.44405,2613.2,2612.8,0.813]
[1729662022860,3.44405,2613.2,2612.8,2.50075253]
[1729662023575,3.44405,2613.2,2612.8,0.813]
[1729662023738,3.44405,2613.2,2612.8,2.50075253]
[1729662024174,3.44419,2613.1,2612.8,0.813]
[1729662024795,1.68775253,2613.3,2612.7,5.13246253]
[1729662025103,3.44418,2613.1,2612.7,1.68775253]
[1729662025774,4.24128,2613.1,2612.6,5.92009253]
[1729662026775,4.24128,2613.1,2612.6,0.7876]
[1729662026776,3.44445,2612.9,2612.6,0.7876]
[1729662027020,3.44441,2613.0,2612.6,0.7876]
[1729662029288,3.44441,2613.0,2612.6,2.47535253]
[1729662031310,4.24128,2613.1,2612.6,2.47535253]
[1729662031520,0.7971,2613.3,2612.7,5.13238253]
[1729662031738,0.7971,2613.3,2612.9,2.47535253]
[1729662031739,4.24111,2613.3,2612.9,2.47535253]
[1729662032033,3.44401,2613.3,2612.9,2.47535253]
[1729662032819,3.44401,2613.3,2612.9,0.7876]
[1729662033518,3.44406,2613.2,2612.9,0.7876]
[1729662033722,3.44419,2613.1,2612.9,0.7876]
[1729662034025,3.44419,2613.1,2612.6,6.06911478]
[1729662034191,3.44419,2613.1,2612.7,0.7876]
[1729662034924,3.44419,2613.1,2612.7,4.23229]
[1729662035499,0.7971,2613.2,2612.7,5.92004253]
[1729662035718,4.24115,2613.2,2612.7,6.51204678]
[1729662039370,3.44419,2613.1,2612.7,1.37960425]
[1729662040058,0.7971,2613.2,2612.7,6.51206678]
[1729662040059,4.24115,2613.2,2612.7,6.51206678]
[1729662040267,3.44421,2613.1,2612.7,4.82431425]
[1729662042643,3.44421,2613.1,2612.7,3.06735678]
[1729662044174,6.88849,2613.1,2612.7,1.37960425]
[1729662044332,6.88849,2613.1,2612.7,0.7876]
[1729662045032,3.44443,2613.0,2612.7,0.7876]
[1729662045228,3.44451,2612.9,2612.7,0.7876]
[1729662046372,6.88886,2613.0,2612.7,0.7876]
[1729662046665,3.44443,2613.0,2612.7,0.7876]
[1729662047087,3.44447,2612.9,2612.7,0.7876]
[1729662050248,3.44458,2612.8,2612.5,0.7937]
[1729662050634,3.44458,2612.8,2612.5,2.48145253]
[1729662050873,3.44458,2612.8,2612.5,2.55799872]
[1729662051078,3.44443,2613.0,2612.5,2.55799872]
[1729662051279,6.88887,2613.0,2612.5,2.55799872]
[1729662051834,3.44443,2613.0,2612.5,2.55799872]
[1729662052161,3.44443,2613.0,2612.6,1.68775253]
[1729662052689,6.88883,2613.0,2612.6,1.68775253]
[1729662052990,6.88881,2613.0,2612.6,1.68775253]
[1729662053353,3.4444,2613.0,2612.6,1.68775253]
[1729662055193,3.4444,2613.0,2612.7,0.8319]
[1729662055398,3.44414,2613.2,2612.7,0.8319]
[1729662055693,3.44414,2613.2,2612.7,4.2766]
[1729662056192,3.44413,2613.2,2612.7,4.2766]
[1729662056490,3.44392,2613.3,2612.7,4.2766]
[1729662056690,3.44418,2613.1,2612.7,0.8319]
[1729662058504,6.88845,2613.1,2612.7,0.8319]
[1729662059798,3.44418,2613.1,2612.7,0.8319]
[1729662060483,6.88844,2613.1,2612.7,0.8319]
[1729662061100,3.44414,2613.2,2612.7,0.8319]
[1729662061254,3.44424,2613.1,2612.7,0.8319]
[1729662061863,3.44433,2613.0,2612.7,0.8319]
[1729662065180,3.44451,2612.9,2612.7,0.8319]
[1729662065385,3.44451,2612.9,2612.5,1.63330654]
[1729662066508,3.44451,2612.9,2612.5,3.32105907]
[1729662066694,3.44451,2612.9,2612.5,1.63330654]
[1729662066893,3.44451,2612.9,2612.5,3.32105907]
[1729662067476,3.44451,2612.9,2612.5,6.76599907]
[1729662071169,3.44428,2613.1,2612.7,1.68775253]
[1729662071820,3.44428,2613.1,2612.7,2.48915907]
[1729662072615,3.44428,2613.1,2612.7,5.93385907]
[1729662072820,3.44428,2613.1,2612.7,1.68775253]
[1729662073113,3.44428,2613.1,2612.7,2.48915907]
[1729662073285,3.44428,2613.1,2612.6,6.01053274]
[1729662073611,3.44433,2613.0,2612.6,6.84606161]
[1729662074430,6.88858,2613.1,2612.6,6.84606161]
[1729662074590,3.44428,2613.1,2612.6,6.84606161]
[1729662074786,6.88854,2613.1,2612.6,6.84606161]
[1729662075106,3.44426,2613.1,2612.6,6.84606161]
[1729662076860,6.88854,2613.1,2612.6,6.84606161]
[1729662077321,3.44432,2613.0,2612.6,3.40123161]
[1729662077524,3.44432,2613.0,2612.6,0.80140654]
[1729662077814,3.44432,2613.0,2612.6,2.48915907]
[1729662077993,3.44432,2613.0,2612.6,5.93399907]
[1729662078719,3.44426,2613.1,2612.6,5.93399907]
[1729662078902,3.44426,2613.1,2612.7,1.68775253]
[1729662079223,3.44426,2613.1,2612.7,2.48915907]
[1729662079522,3.0,2613.2,2612.8,0.8296]
[1729662079672,3.44425,2613.1,2612.8,0.8296]
[1729662080014,6.44405,2613.2,2612.8,0.8296]
[1729662080712,6.44405,2613.2,2612.8,4.27417]
[1729662080904,6.44405,2613.2,2612.8,5.96192253]
[1729662081217,6.44405,2613.2,2612.8,2.51735253]
[1729662081376,6.44405,2613.2,2612.8,0.8296]
[1729662081726,4.23609,2613.4,2612.9,1.68775253]
[1729662082015,4.23609,2613.4,2612.9,2.59389121]
[1729662082016,6.44403,2613.3,2612.9,2.59389121]
[1729662082613,3.44405,2613.2,2612.9,2.51735253]
[1729662084621,3.44389,2613.4,2613.1,1.68775253]
[1729662084837,3.44389,2613.4,2613.0,2.51685253]
[1729662085116,3.44389,2613.4,2613.0,3.66901529]
[1729662085476,6.88775,2613.4,2613.0,3.66901529]
[1729662085721,3.44386,2613.4,2613.0,3.66901529]
[1729662085942,3.44356,2613.6,2613.3,1.68775253]
[1729662086075,3.44356,2613.6,2613.3,0.8291]
[1729662086076,3.44369,2613.5,2613.3,0.8291]
[1729662086777,3.44378,2613.4,2613.3,0.8291]
[1729662087494,3.44395,2613.3,2613.1,0.8291]
[1729662088258,3.44406,2613.2,2612.9,0.8291]
[1729662088427,3.44406,2613.2,2612.9,1.62558389]
[1729662088593,3.44419,2613.1,2612.7,1.63050654]
[1729662088917,3.44406,2613.2,2612.9,1.68775253]
[1729662089216,3.44406,2613.2,2612.7,1.63050654]
[1729662089593,3.44406,2613.2,2612.8,1.68775253]
[1729662089792,3.44406,2613.2,2612.9,0.33182591]
[1729662094325,3.44406,2613.2,2612.7,6.76293907]
[1729662094526,3.44406,2613.2,2612.7,5.96153253]
[1729662094723,3.44406,2613.2,2612.7,6.76293907]
[1729662097567,3.44406,2613.2,2612.8,3.44457]
[1729662097867,3.44393,2613.3,2612.9,0.07653451]
[1729662098028,3.44393,2613.3,2612.9,0.76046487]
[1729662098462,3.44393,2613.3,2612.9,2.4482174]
[1729662098669,3.44393,2613.3,2612.9,0.76046487]
[1729662101690,3.44393,2613.3,2612.9,2.4482174]
[1729662101892,3.44393,2613.3,2612.9,0.76046487]
[1729662102605,3.44393,2613.3,2612.9,0.68393036]
[1729662103483,2.50065253,2613.4,2612.9,0.68393036]
[1729662103654,3.44412,2613.2,2612.7,6.76295907]
[1729662104059,3.44412,2613.2,2612.7,3.31825907]
[1729662104373,3.44412,2613.2,2612.8,3.44457]
[1729662104774,3.44412,2613.2,2612.8,5.13232253]
[1729662104979,3.44412,2613.2,2612.8,6.27329142]
[1729662106063,3.44412,2613.2,2612.8,4.58553889]
[1729662108579,3.44412,2613.2,2612.8,6.27329142]
[1729662108900,3.44412,2613.2,2612.8,4.58553889]
[1729662111300,0.8295,2613.1,2612.8,1.14096889]
[1729662111599,0.8295,2613.1,2612.7,5.13244253]
[1729662114719,0.8295,2613.1,2612.7,3.44469]
[1729662115030,0.8295,2613.1,2612.7,0.80332661]
[1729662115031,4.27371,2613.1,2612.7,0.80332661]
[1729662115736,0.8295,2613.1,2612.7,4.24801661]
[1729662116238,0.8295,2613.1,2612.7,5.93576914]
[1729662116434,0.8295,2613.1,2612.7,7.32287275]
[1729662117908,3.44396,2613.3,2612.8,6.01211646]
[1729662118112,4.24456,2613.3,2612.8,6.01211646]
[1729662118435,4.24456,2613.3,2612.8,5.20878985]
[1729662118590,4.24456,2613.3,2612.8,6.01211646]
[1729662120333,0.8006,2613.3,2612.8,6.01211646]
[1729662120540,3.44405,2613.2,2612.8,6.01211646]
[1729662120900,3.44405,2613.2,2612.8,3.52103732]
[1729662122845,3.44405,2613.2,2612.8,0.80332661]
[1729662123050,4.24478,2613.1,2612.7,2.49107914]
[1729662123207,4.24478,2613.1,2612.7,0.80332661]
[1729662124341,0.8006,2613.1,2612.7,4.24802661]
[1729662125524,0.8006,2613.1,2612.7,5.93577914]
[1729662125901,0.8006,2613.1,2612.8,0.80332661]
[1729662128553,0.8006,2613.1,2612.7,4.24802661]
[1729662129656,0.8006,2613.1,2612.8,0.80332661]
[1729662130353,0.8006,2613.1,2612.7,4.24802661]
[1729662131055,0.8006,2613.1,2612.8,0.80332661]
[1729662131220,0.8006,2613.1,2612.7,4.24802661]
[1729662131420,0.8006,2613.1,2612.8,0.80332661]
[1729662131826,3.44458,2612.8,2612.7,0.80332661]
[1729662132166,3.44458,2612.8,2612.4,0.80332661]
[1729662132167,5.94483253,2612.8,2612.4,0.80332661]
[1729662132960,9.38948253,2612.8,2612.3,4.24846661]
[1729662133161,9.38948253,2612.8,2612.4,0.80332661]
[1729662133419,5.94483253,2612.8,2612.4,0.80332661]
[1729662133571,9.38949253,2612.8,2612.3,4.24846661]
[1729662133945,9.38949253,2612.8,2612.3,0.80332661]
[1729662134623,3.44472,2612.7,2612.2,7.69384661]
[1729662134870,3.44472,2612.7,2612.2,10.56897231]
[1729662135025,3.44472,2612.7,2612.3,0.80332661]
[1729662135678,3.44472,2612.7,2612.3,1.68775253]
[1729662137780,0.8125,2612.3,2612.0,0.80332661]
[1729662138087,0.8125,2612.3,2611.8,0.80332661]
[1729662138088,3.44537,2612.2,2611.8,0.80332661]
[1729662138682,3.44537,2612.2,2611.7,2.49107914]
[1729662138979,3.44537,2612.2,2611.7,6.73240005]
[1729662139285,0.8125,2612.1,2611.7,6.73240005]
[1729662139595,0.8125,2612.1,2611.7,5.92907344]
[1729662139886,0.8125,2612.1,2611.7,0.79530091]
[1729662140089,4.25801,2612.1,2611.7,0.79530091]
[1729662141794,4.25801,2612.1,2611.7,3.44601]
[1729662142681,4.25801,2612.1,2611.6,4.25685]
[1729662142882,4.25801,2612.1,2611.6,3.44605]
[1729662143067,5.94576253,2612.1,2611.6,6.89213]
[1729662143270,4.25801,2612.1,2611.6,8.57988253]
[1729662143581,4.25801,2612.1,2611.6,9.59928344]
[1729662143754,4.25801,2612.1,2611.6,7.91153091]
[1729662144363,4.25801,2612.1,2611.6,9.59928344]
[1729662144600,4.25801,2612.1,2611.6,3.44605]
[1729662144765,3.06651221,2612.9,2611.4,1.61412661]
[1729662144766,1.68775253,2611.9,2611.4,4.25716]
[1729662144945,3.44565,2612.0,2611.5,5.13403253]
[1729662144946,0.8154,2611.8,2611.5,5.13403253]
[1729662145153,0.8154,2611.8,2611.6,3.44615]
[1729662145353,4.2609,2612.1,2611.6,3.44615]
[1729662145553,5.94865253,2612.1,2611.6,3.44615]
[1729662145782,4.2609,2612.1,2611.6,3.44615]
[1729662145991,4.2609,2612.1,2611.6,5.13390253]
[1729662146188,3.44567,2612.0,2611.6,1.68775253]
[1729662146408,3.44577,2611.9,2611.4,3.44635]
[1729662146554,5.94906253,2611.8,2611.1,2.49107914]
[1729662146754,0.8154,2611.8,2611.3,1.68775253]
[1729662146980,0.8154,2611.8,2611.3,5.13421253]
[1729662146981,4.26132,2611.8,2611.3,5.13421253]
[1729662147717,4.26132,2611.8,2611.3,1.68775253]
[1729662147993,4.26132,2611.8,2611.3,5.13429253]
[1729662149307,3.44606,2611.7,2611.2,3.44668]
[1729662149604,3.44606,2611.7,2611.2,5.13443253]
[1729662149754,3.44606,2611.7,2611.3,1.68775253]
[1729662151766,0.8154,2611.8,2611.3,5.13417253]
[1729662151994,0.8154,2611.8,2611.4,1.68775253]
[1729662152217,0.8154,2611.8,2611.3,5.13417253]
[1729662152681,4.2614,2611.8,2611.3,5.13417253]
[1729662153920,0.8154,2611.8,2611.5,5.13402253]
[1729662154797,0.8154,2611.8,2611.5,3.44627]
[1729662155524,0.8154,2611.8,2611.5,5.13402253]
[1729662158214,0.8154,2611.8,2611.5,5.13397253]
[1729662158478,3.4457,2612.0,2611.6,3.44614]
[1729662158598,3.4457,2612.0,2611.6,5.13389253]
[1729662158796,6.89145,2612.0,2611.5,4.10397337]
[1729662159017,6.89145,2612.0,2611.5,5.13397253]
[1729662159387,3.4457,2612.0,2611.5,8.58017253]
[1729662159890,3.4457,2612.0,2611.6,1.68775253]
[1729662160124,3.4457,2612.0,2611.6,5.13389253]
[1729662160315,3.4457,2612.0,2611.6,3.44614]
[1729662161126,4.26091,2612.1,2611.8,1.68775253]
[1729662161431,4.26091,2612.1,2611.6,6.79490178]
[1729662162825,4.26091,2612.1,2611.6,6.79486178]
[1729662163561,4.26091,2612.1,2611.6,10.24095178]
[1729662163766,4.26091,2612.1,2611.6,6.79485178]
[1729662164963,7.70648,2612.1,2611.6,6.79485178]
[1729662165161,7.70648,2612.1,2611.6,5.93684253]
[1729662165729,7.70652,2612.1,2611.6,5.93684253]
[1729662166068,7.70652,2612.1,2611.6,5.13384253]
[1729662166365,1.68775253,2611.9,2611.1,4.71814788]
[1729662166571,1.68775253,2611.9,2611.2,4.66775253]
[1729662166572,0.7679,2611.6,2611.2,4.66775253]
[1729662166858,0.7679,2611.6,2611.3,5.13429253]
[1729662167561,0.7679,2611.6,2611.2,3.91859004]
[1729662167733,0.7679,2611.6,2611.2,9.05302257]
[1729662167940,0.7679,2611.6,2611.2,6.07302257]
[1729662168140,0.7679,2611.6,2611.3,1.68775253]
[1729662170161,0.7679,2611.5,2611.1,3.44681]
[1729662170466,4.21428,2611.5,2611.0,1.68775253]
[1729662170668,4.21428,2611.5,2611.0,2.62250378]
[1729662170965,4.21428,2611.5,2611.1,1.68775253]
[1729662171430,0.7679,2611.5,2611.1,5.13456253]
[1729662171626,0.7679,2611.5,2611.3,1.68775253]
[1729662172270,0.7679,2611.5,2611.2,5.13442253]
[1729662172467,0.7679,2611.5,2611.2,6.08602091]
[1729662172975,0.7679,2611.5,2611.2,2.63935091]
[1729662173137,0.7679,2611.5,2611.3,3.44653]
[1729662175260,0.7679,2611.5,2611.3,5.13428253]
[1729662175574,0.8093,2611.5,2611.2,6.08600091]
[1729662175933,0.8093,2611.5,2611.3,1.68775253]
[1729662176129,0.8093,2611.5,2611.3,5.13430253]
[1729662176355,0.8093,2611.5,2611.3,3.44655]
[1729662176562,0.8093,2611.5,2611.2,3.44666]
[1729662176772,0.8093,2611.5,2611.2,5.13441253]
[1729662177583,0.8093,2611.5,2611.2,8.58103253]
[1729662177962,0.8093,2611.5,2611.2,5.13437253]
[1729662178166,0.8093,2611.5,2611.2,3.44662]
[1729662178847,0.8093,2611.5,2611.2,5.13437253]
[1729662180762,0.8093,2611.5,2611.2,3.44662]
[1729662181083,0.8093,2611.5,2611.1,5.13452253]
[1729662181576,0.8093,2611.5,2611.1,3.44677]
[1729662181738,0.8093,2611.5,2611.1,5.13452253]
[1729662182186,0.8093,2611.5,2611.2,3.44666]
[1729662184700,0.8093,2611.5,2611.2,6.89332]
[1729662185895,0.8093,2611.5,2611.3,5.13419253]
[1729662186126,0.8093,2611.5,2611.3,3.44644]
[1729662186600,0.8093,2611.5,2611.4,3.44642]
[1729662191206,0.8093,2611.5,2611.3,3.44655]
[1729662194255,0.8093,2611.5,2611.2,5.18843652]
[1729662194417,0.8093,2611.5,2611.2,3.44667]
[1729662194946,0.8093,2611.5,2611.2,3.44662]
[1729662195256,0.8093,2611.5,2611.3,3.44655]
[1729662201259,0.8093,2611.5,2611.2,0.80332661]
[1729662201460,4.25561,2611.5,2611.1,0.80332661]
[1729662201829,4.25561,2611.5,2611.0,4.25026661]
[1729662203172,0.8088,2611.4,2611.0,0.80332661]
[1729662203377,0.8088,2611.4,2611.1,3.44682]
[1729662203874,0.8088,2611.4,2611.1,5.13457253]
[1729662204036,0.8088,2611.4,2611.1,6.7990532]
[1729662204240,0.8088,2611.4,2611.1,5.99572659]
[1729662204638,0.8088,2611.4,2611.1,6.7990532]
[1729662205373,0.8088,2611.4,2611.1,10.2457832]
[1729662205673,0.8088,2611.4,2611.2,3.44664]
[1729662205837,0.8189,2611.6,2611.2,5.47222592]
[1729662206038,0.8189,2611.6,2611.3,3.44652]
[1729662206349,3.4459,2611.8,2611.3,3.44652]
[1729662206350,0.8189,2611.8,2611.4,3.44634]
[1729662206676,0.8189,2611.8,2611.4,3.44631]
[1729662208150,4.26481,2611.8,2611.3,4.24984661]
[1729662208344,4.26481,2611.8,2611.3,3.44652]
[1729662209048,4.26481,2611.8,2611.3,6.89301]
[1729662209247,4.26481,2611.8,2611.3,3.44649]
[1729662212148,4.26481,2611.8,2611.3,6.89298]
[1729662212395,0.8189,2611.8,2611.4,3.44641]
[1729662212551,4.2648,2611.8,2611.3,4.74048318]
[1729662212753,4.2648,2611.8,2611.3,8.18696318]
[1729662213791,4.2648,2611.8,2611.3,4.74047318]
[1729662213965,0.8189,2611.8,2611.4,3.44633]
[1729662214652,0.8189,2611.8,2611.4,4.24965661]
[1729662215573,3.87621429,2612.7,2611.4,4.24965661]
[1729662215574,4.26442,2612.1,2611.6,5.13381253]
[1729662215900,3.44563,2612.0,2611.6,0.80332661]
[1729662216079,0.8189,2611.9,2611.5,4.24961661]
[1729662216254,0.8189,2611.9,2611.6,3.44613]
[1729662216680,0.8189,2611.9,2611.6,4.24945661]
[1729662217392,0.8189,2611.9,2611.6,3.44613]
[1729662218597,0.8189,2611.9,2611.5,4.24961661]
[1729662219558,0.8189,2611.9,2611.6,3.44613]
[1729662219950,0.8189,2611.9,2611.6,4.24945661]
[1729662220400,5.13320253,2612.2,2611.7,3.44596]
[1729662220557,0.8172,2612.1,2611.7,3.44596]
[1729662220758,0.8172,2612.1,2611.8,5.93907253]
[1729662221056,0.8172,2612.3,2611.9,4.39183076]
[1729662221589,0.8172,2612.3,2612.0,3.44561]
[1729662222370,1.68775253,2612.6,2612.1,3.44538]
[1729662222556,0.8172,2612.6,2612.1,5.13319253]
[1729662222755,5.94979253,2612.6,2612.1,3.44544]
[1729662224471,0.8172,2612.6,2612.2,3.44536]
[1729662225159,0.8172,2612.6,2612.2,1.68775253]
[1729662225360,0.8172,2612.6,2612.2,3.44536]
[1729662228887,5.94980253,2612.6,2612.1,4.47827499]
[1729662229722,2.50495253,2612.6,2612.2,3.44536]
[1729662229887,0.8172,2612.6,2612.2,3.44536]
[1729662230090,2.50495253,2612.6,2612.2,3.44536]
[1729662234199,2.50495253,2612.6,2612.1,4.47822499]
[1729662234524,5.94980253,2612.6,2612.1,4.47822499]
[1729662234699,5.94980253,2612.6,2612.1,3.44539]
[1729662235631,5.94980253,2612.6,2612.1,6.89082]
[1729662235826,5.94980253,2612.6,2612.1,3.44539]
[1729662236829,0.8111,2612.4,2612.0,3.4456]
[1729662237411,0.8111,2612.4,2611.9,6.07959329]
[1729662237615,0.8111,2612.4,2612.1,3.44549]
[1729662242102,0.8111,2612.4,2612.1,3.44542]
[1729662242306,0.8111,2612.4,2612.1,4.39793033]
[1729662242616,0.8111,2612.4,2612.2,3.44531]
[1729662242996,0.8111,2612.4,2612.1,4.39793033]
[1729662243825,0.8111,2612.4,2612.1,3.44542]
[1729662247991,0.8111,2612.4,2612.2,3.4453]
[1729662248224,0.8111,2612.4,2612.1,3.44542]
[1729662248753,0.8111,2612.4,2612.2,3.44535]
[1729662249903,0.8111,2612.4,2612.1,3.44542]
[1729662250309,0.8111,2612.4,2612.1,6.89085]
[1729662250509,0.8111,2612.4,2612.1,4.30328025]
[1729662250739,0.8111,2612.4,2612.1,7.74871025]
[1729662251221,0.8111,2612.4,2612.1,4.30328025]
[1729662252713,0.8111,2612.4,2612.2,3.44532]
[1729662253142,0.8111,2612.4,2612.3,3.44523]
[1729662253333,0.8111,2612.4,2612.2,3.44536]
[1729662253643,0.8111,2612.4,2612.2,4.38901728]
[1729662255222,0.8111,2612.4,2612.0,3.44554]
[1729662255420,0.8111,2612.4,2611.7,3.44602]
[1729662255421,0.7754,2612.1,2611.7,3.44602]
[1729662255735,0.7754,2612.1,2611.8,3.22]
[1729662255936,0.7754,2612.1,2611.4,1.57772661]
[1729662255937,0.7754,2612.0,2611.4,1.57772661]
[1729662256118,0.7754,2612.0,2611.5,3.44629]
[1729662256119,0.7754,2611.9,2611.5,3.44629]
[1729662256730,0.7754,2611.9,2611.5,3.44621]
[1729662256922,0.7754,2611.9,2611.6,3.44614]
[1729662261037,0.7754,2611.9,2611.4,5.75707718]
[1729662261038,2.46315253,2611.9,2611.4,4.06932465]
[1729662261352,4.22122,2611.9,2611.4,3.44636]
[1729662261716,4.22122,2611.9,2611.4,6.8927]
[1729662261950,4.22122,2611.9,2611.4,3.44634]
[1729662262957,0.7754,2611.7,2611.4,3.44634]
[1729662264961,0.7754,2611.7,2611.6,1.68775253]
[1729662265195,0.7754,2611.7,2611.5,5.13403253]
[1729662265352,0.7754,2611.7,2611.5,5.99972401]
[1729662266054,0.7754,2611.7,2611.4,1.68775253]
[1729662266376,0.7754,2611.7,2611.5,1.68775253]
[1729662266778,0.7754,2611.7,2611.4,5.13413253]
[1729662266984,0.7754,2611.7,2611.5,3.44628]
[1729662267182,0.7754,2611.7,2611.5,5.13403253]
[1729662269288,0.7754,2611.7,2611.5,1.68775253]
[1729662269452,0.7754,2611.7,2611.3,4.23936]
[1729662269453,0.7754,2611.7,2611.3,8.58069253]
[1729662269654,0.7754,2611.7,2611.4,3.44642]
[1729662270187,0.7754,2611.7,2611.4,5.13417253]
[1729662272088,0.7754,2611.7,2611.4,3.44642]
[1729662272259,0.7754,2611.7,2611.4,5.13417253]
[1729662272795,0.7754,2611.7,2611.5,3.44625]
[1729662272956,0.7754,2611.7,2611.5,4.40606144]
[1729662276514,0.7754,2611.7,2611.5,3.44625]
[1729662277014,0.7754,2611.7,2611.3,1.68775253]
[1729662277219,0.7754,2611.7,2611.4,3.44642]
[1729662278412,0.7754,2611.7,2611.4,3.44634]
[1729662278911,0.7754,2611.7,2611.2,3.44659]
[1729662279114,0.7754,2611.7,2611.3,3.44654]
[1729662285371,0.7754,2611.7,2611.4,3.44641]
[1729662289193,0.7754,2611.7,2611.4,3.44635]
[1729662289484,0.7754,2611.7,2611.4,4.30441925]
[1729662291193,0.7754,2611.7,2611.4,9.43850178]
[1729662291454,0.7754,2611.7,2611.5,5.13394253]
[1729662291603,0.8244,2612.0,2611.6,3.44608]
[1729662295224,0.8244,2612.0,2611.6,1.68775253]
[1729662295375,0.8244,2612.0,2611.7,5.72370678]
[1729662295577,0.8053,2612.2,2611.9,5.13340253]
[1729662295814,0.8053,2612.2,2611.7,0.59001425]
[1729662295815,0.8053,2612.2,2611.8,0.7549]
[1729662296480,0.8053,2612.4,2612.0,3.44555]
[1729662296680,0.8053,2612.4,2611.9,3.44576]
[1729662297017,3.44498,2612.5,2611.9,3.44576]
[1729662297018,3.44498,2612.5,2612.1,5.13324253]
[1729662297319,3.44472,2612.7,2612.4,1.68775253]
[1729662297527,5.13267253,2612.6,2612.1,3.44542]
[1729662297686,0.8053,2612.5,2612.1,3.44542]
[1729662298090,0.8053,2612.5,2612.1,5.13317253]
[1729662298317,4.25028,2612.5,2612.1,0.98341512]
[1729662298782,7.69536,2612.5,2612.1,0.98341512]
[1729662298993,7.69535,2612.5,2612.0,5.13337253]
[1729662299412,4.25028,2612.5,2612.0,3.44562]
[1729662299985,4.25028,2612.5,2611.9,1.25529866]
[1729662300326,4.25028,2612.5,2611.8,5.93695914]
[1729662300327,3.44525,2612.3,2611.8,5.93695914]
[1729662300528,0.8053,2612.2,2611.7,1.55822661]
[1729662300734,0.8053,2611.9,2611.5,4.24958661]
[1729662300887,0.8053,2611.9,2611.5,3.44626]
[1729662301088,4.25107,2611.9,2611.7,3.22]
[1729662301281,0.8053,2611.9,2611.7,3.22]
[1729662302226,0.8053,2611.9,2611.5,5.13403253]
[1729662302388,0.8053,2611.9,2611.5,3.44628]
[1729662302590,0.8053,2611.9,2611.5,5.13403253]
[1729662305168,0.8053,2611.9,2611.7,1.68775253]
[1729662305368,0.8053,2612.1,2611.8,5.13358253]
[1729662306040,0.8053,2612.1,2611.7,5.88858253]
[1729662306241,0.8053,2612.1,2611.7,5.13368253]
[1729662306570,0.8053,2612.1,2611.8,1.68775253]
[1729662307962,0.8053,2612.4,2612.0,1.68775253]
[1729662308264,3.44505,2612.5,2612.0,1.68775253]
[1729662308265,3.44505,2612.5,2612.1,1.68775253]
[1729662308561,3.44505,2612.5,2612.0,5.13336253]
[1729662309121,3.44505,2612.5,2612.1,1.68775253]
[1729662309355,3.44505,2612.5,2612.0,3.44561]
[1729662309356,3.44505,2612.5,2612.0,5.13336253]
[1729662309521,3.44505,2612.5,2612.1,1.68775253]